bitfinex-derivatives/quotes_BTCF0:USTF0_20251118
["timestamp","ask_amount","ask_price","bid_price","bid_amount"]
[1763480695436,0.07864,92788.0,92787.0,0.00016172]
[1763480697440,0.1950926,92771.0,92770.0,0.01132541]
[1763480697641,0.1950926,92771.0,92770.0,0.00219803]
[1763480697835,0.5558926,92771.0,92770.0,0.26619803]
[1763480698033,0.00073264,92770.0,92758.0,0.44735656]
[1763480698251,0.00073264,92770.0,92762.0,0.01122244]
[1763480698252,0.5559019,92763.0,92762.0,0.01122244]
[1763480698443,0.5559019,92763.0,92762.0,0.00013784]
[1763480699139,0.3608,92771.0,92770.0,0.08659]
[1763480699342,0.448,92771.0,92770.0,0.00219803]
[1763480700027,0.448,92771.0,92762.0,0.01132896]
[1763480700028,0.1079019,92763.0,92762.0,0.01132896]
[1763480700229,0.1951077,92758.0,92757.0,0.00016172]
[1763480700535,0.1951228,92745.0,92744.0,0.08546476]
[1763480700735,0.3608,92786.0,92767.0,0.08659]
[1763480700940,0.1078685,92792.0,92785.0,0.08659]
[1763480701137,0.0872,92781.0,92780.0,0.00219803]
[1763480701441,0.08730371,92781.0,92780.0,0.00219803]
[1763480701930,0.00010371,92781.0,92780.0,0.08878803]
[1763480702439,0.36096172,92790.0,92789.0,0.08659]
[1763480702440,1e-08,92790.0,92789.0,0.08659]
[1763480702745,0.3608,92813.0,92790.0,0.00219803]
[1763480702931,0.02474,92832.0,92790.0,0.00219803]
[1763480702932,0.00073264,92800.0,92799.0,0.04289]
[1763480703133,0.0872,92791.0,92790.0,0.3608]
[1763480703342,0.1078829,92780.0,92776.0,0.3608]
[1763480703534,0.00016143,92787.0,92777.0,0.26416]
[1763480703837,0.001,92781.0,92780.0,0.08878803]
[1763480704435,0.001,92781.0,92780.0,0.04508803]
[1763480704630,0.0882,92781.0,92780.0,0.00219803]
[1763480704830,0.0872,92770.0,92768.0,0.3608]
[1763480705040,0.08793264,92770.0,92768.0,0.3608]
[1763480705428,0.08793264,92770.0,92750.0,0.60501111]
[1763480705429,0.08793264,92770.0,92750.0,0.3608]
[1763480705634,0.1079158,92751.0,92742.0,0.3608]
[1763480705837,0.1509758,92751.0,92750.0,0.00219803]
[1763480706045,0.55596733,92751.0,92750.0,0.26627803]
[1763480706432,0.0872,92748.0,92747.0,8.706e-05]
[1763480706639,0.1079564,92717.0,92714.0,0.3608]
[1763480706947,0.0872,92715.0,92714.0,0.09764782]
[1763480707239,0.0872,92715.0,92710.0,0.00219803]
[1763480707240,0.0872,92711.0,92710.0,0.00219803]
[1763480707445,0.0872,92702.0,92701.0,0.26408]
[1763480707743,8.459e-05,92702.0,92701.0,0.35067]
[1763480708337,8.459e-05,92702.0,92701.0,0.43756474]
[1763480708748,0.04314459,92702.0,92701.0,0.35097474]
[1763480709044,0.08728459,92702.0,92701.0,0.08689474]
[1763480709246,0.195174,92701.0,92700.0,0.00219803]
[1763480709641,0.0872,92701.0,92700.0,0.00219803]
[1763480710039,0.36088459,92702.0,92692.0,0.37233434]
[1763480710040,0.0872,92693.0,92692.0,0.00016173]
[1763480710341,0.448,92693.0,92692.0,1.73e-06]
[1763480710544,0.0872,92687.0,92678.0,0.3608]
[1763480710844,0.0872,92687.0,92660.0,0.60501111]
[1763480710845,0.02474,92682.0,92671.0,0.08522972]
[1763480711036,0.7216,92693.0,92670.0,0.00219803]
[1763480711037,0.00073264,92680.0,92670.0,0.00219803]
[1763480711535,0.1080048,92675.0,92670.0,0.00219803]
[1763480711941,0.04306,92671.0,92670.0,0.00219803]
[1763480712138,0.08732366,92671.0,92670.0,0.00219803]
[1763480712338,0.00012366,92671.0,92670.0,0.00219803]
[1763480712940,0.00012366,92671.0,92670.0,0.19679813]
[1763480713343,0.3608,92715.0,92682.0,0.02221]
[1763480713638,0.0872,92711.0,92710.0,0.00219803]
[1763480713947,0.1079838,92693.0,92686.0,0.26408]
[1763480714248,0.0872,92691.0,92690.0,0.00219803]
[1763480714743,0.0872,92681.0,92680.0,0.00016182]
[1763480714946,0.3608,92695.0,92680.0,0.00235985]
[1763480715145,0.00073264,92690.0,92689.0,0.08659]
[1763480715445,0.0872,92688.0,92680.0,0.00016182]
[1763480715637,0.00073264,92690.0,92680.0,0.26643985]
[1763480715844,0.107988,92689.0,92680.0,0.26643985]
[1763480716047,0.04306,92681.0,92680.0,0.26643985]
[1763480716248,0.00073264,92690.0,92680.0,0.26643985]
[1763480716445,0.3608,92694.0,92689.0,0.08659]
[1763480716843,0.4687822,92694.0,92689.0,0.08659]
[1763480717045,0.0872,92686.0,92685.0,0.3608]
[1763480717251,0.00073264,92690.0,92685.0,0.3608]
[1763480717844,0.1951973,92681.0,92680.0,0.00235985]
[1763480718347,0.1941973,92681.0,92680.0,0.00235985]
[1763480720661,0.1941973,92681.0,92680.0,0.00016182]
[1763480720853,0.00073264,92680.0,92669.0,0.01142926]
[1763480721053,0.1079797,92697.0,92669.0,0.01142926]
[1763480721054,0.3608,92687.0,92679.0,0.07134]
[1763480721247,0.02474,92701.0,92672.0,0.3608]
[1763480721248,0.00073264,92690.0,92689.0,0.03532]
[1763480721860,0.00073264,92690.0,92689.0,0.07134]
[1763480722357,0.107972,92703.0,92690.0,0.00219803]
[1763480722562,0.00073264,92700.0,92691.0,0.3608]
[1763480722861,0.1079801,92696.0,92692.0,0.26416]
[1763480723051,0.1079833,92693.0,92692.0,0.26416]
[1763480723452,0.07388,92691.0,92690.0,0.00219803]
[1763480723658,0.1818738,92684.0,92683.0,0.3608]
[1763480724062,0.03834,92684.0,92683.0,0.3608]
[1763480724257,0.10799,92688.0,92683.0,0.3608]
[1763480724565,0.3608,92704.0,92692.0,0.1079842]
[1763480724862,0.00073264,92700.0,92694.0,0.3608]
[1763480725159,0.00073264,92700.0,92694.0,0.62496]
[1763480725657,0.62496,92719.0,92698.0,0.3608]
[1763480725658,0.3608,92719.0,92698.0,0.3608]
[1763480725863,0.1079402,92731.0,92718.0,0.07134]
[1763480726060,0.3608,92735.0,92734.0,0.07134]
[1763480726363,0.3608,92770.0,92744.0,0.07134]
[1763480726563,0.00073264,92760.0,92759.0,0.07134]
[1763480726754,0.00016173,92769.0,92765.0,0.07134]
[1763480726955,0.1078974,92767.0,92765.0,0.43214]
[1763480727258,0.0001639,92766.0,92765.0,0.43214]
[1763480727454,0.00016173,92769.0,92768.0,0.07114]
[1763480728864,0.1078781,92784.0,92770.0,0.00219803]
[1763480729054,0.00073264,92780.0,92776.0,0.3608]
[1763480729252,0.3608,92806.0,92779.0,0.07349]
[1763480729560,0.00073264,92790.0,92787.0,0.24421111]
[1763480729961,0.00073264,92790.0,92789.0,0.03767]
[1763480730155,0.00016173,92798.0,92790.0,0.00219803]
[1763480730365,0.03611,92791.0,92790.0,0.00219803]
[1763480730662,0.1078669,92794.0,92790.0,0.00219803]
[1763480730857,0.00016173,92798.0,92790.0,0.00219803]
[1763480731062,0.00016173,92798.0,92794.0,0.3608]
[1763480731251,0.00016173,92798.0,92797.0,0.07349]
[1763480731857,0.00016173,92798.0,92794.0,0.3608]
[1763480732255,0.07182,92791.0,92790.0,0.00219803]
[1763480732459,0.02235,92796.0,92790.0,0.00219803]
[1763480732460,0.02235,92796.0,92790.0,0.35373654]
[1763480732661,0.1796893,92791.0,92790.0,0.26627803]
[1763480732968,0.1796893,92791.0,92790.0,0.00219803]
[1763480733264,0.1797021,92780.0,92779.0,0.00016173]
[1763480733465,0.1797242,92761.0,92760.0,0.3608]
[1763480733765,0.1079158,92751.0,92750.0,0.50610177]
[1763480734072,0.1079031,92762.0,92750.0,0.36299803]
[1763480734256,0.00073264,92760.0,92759.0,0.07349]
[1763480734557,0.00016173,92769.0,92760.0,0.00219803]
[1763480734765,0.00016173,92769.0,92768.0,0.43429]
[1763480734964,0.1078742,92787.0,92770.0,0.00219803]
[1763480735168,0.1078738,92788.0,92780.0,0.14530177]
[1763480735356,0.3608,92791.0,92780.0,0.1474998]
[1763480735357,0.1078716,92789.0,92780.0,0.1474998]
[1763480735561,0.00073264,92790.0,92780.0,0.1474998]
[1763480735771,0.1078716,92789.0,92780.0,0.1474998]
[1763480735970,0.1078798,92782.0,92780.0,0.23536466]
[1763480736471,0.107875,92787.0,92780.0,0.23536466]
[1763480736778,0.107875,92787.0,92781.0,0.26404]
[1763480736969,0.00073264,92790.0,92781.0,0.26404]
[1763480737168,0.1078781,92784.0,92781.0,0.26404]
[1763480737369,0.1078781,92784.0,92780.0,0.23536466]
[1763480737574,0.1078781,92784.0,92781.0,0.264]
[1763480737971,0.07182,92781.0,92780.0,0.00219803]
[1763480738477,0.1797067,92776.0,92775.0,0.00016173]
[1763480738779,0.02308264,92780.0,92770.0,0.00219803]
[1763480738971,0.107889,92775.0,92770.0,0.1474998]
[1763480739373,0.1078838,92779.0,92770.0,0.1474998]
[1763480739572,0.02308264,92780.0,92770.0,0.00219803]
[1763480739878,0.00073264,92780.0,92770.0,0.00219803]
[1763480740479,0.001,92790.0,92789.0,0.03767]
[1763480740676,0.1078749,92787.0,92781.0,0.14530177]
[1763480740869,0.00173264,92790.0,92781.0,0.264]
[1763480741377,0.1078787,92783.0,92781.0,0.264]
[1763480741975,0.00073264,92790.0,92780.0,0.00219803]
[1763480741976,0.1078747,92787.0,92780.0,0.00219803]
[1763480742171,0.03611,92781.0,92780.0,0.00219803]
[1763480742478,0.07182,92781.0,92780.0,0.00219803]
[1763480743082,0.36096173,92794.0,92780.0,0.00219803]
[1763480743279,0.1078792,92783.0,92780.0,0.00219803]
[1763480743481,0.43262,92781.0,92780.0,0.00219803]
[1763480743689,0.43262,92781.0,92754.0,0.3608]
[1763480743690,0.07182,92769.0,92766.0,0.26412173]
[1763480743871,0.07182,92769.0,92766.0,0.00016173]
[1763480744076,0.07182,92767.0,92766.0,0.00016173]
[1763480746184,0.1079274,92741.0,92740.0,0.14530177]
[1763480746489,0.1079218,92746.0,92740.0,0.26615803]
[1763480746686,0.107927,92742.0,92740.0,0.27758237]
[1763480746988,0.1079231,92745.0,92740.0,0.27758237]
[1763480747185,0.00016173,92752.0,92751.0,0.07349]
[1763480747376,0.00016173,92752.0,92751.0,0.69825]
[1763480747576,0.1078945,92770.0,92766.0,0.07349]
[1763480747785,0.3608,92775.0,92766.0,0.07349]
[1763480749187,0.1078937,92771.0,92766.0,0.07349]
[1763480749579,0.02324437,92780.0,92765.0,0.50610177]
[1763480749786,0.02324437,92780.0,92770.0,0.00219803]
[1763480750087,0.00016173,92780.0,92779.0,0.07349]
[1763480750285,0.00016173,92780.0,92779.0,0.42264091]
[1763480750485,0.00016173,92780.0,92779.0,0.33745]
[1763480750983,0.4686485,92809.0,92780.0,0.00219803]
[1763480751187,0.4686485,92809.0,92798.0,0.3608]
[1763480751188,0.10812238,92806.0,92798.0,0.3608]
[1763480751393,0.00026938,92806.0,92800.0,0.00219803]
[1763480751592,0.107853,92805.0,92800.0,0.00219803]
[1763480751892,0.10812138,92806.0,92800.0,0.00219803]
[1763480752094,0.00026938,92806.0,92805.0,0.07349]
[1763480752986,0.00026938,92806.0,92805.0,0.03767]
[1763480753192,0.00026938,92806.0,92805.0,0.07349]
[1763480753989,0.00026938,92806.0,92794.0,0.00016163]
[1763480753990,0.1796846,92795.0,92794.0,0.00016163]
[1763480754190,0.07182,92795.0,92794.0,0.00016163]
[1763480754781,0.1078809,92781.0,92780.0,0.14530177]
[1763480754987,0.15380606,92781.0,92780.0,0.00219803]
[1763480755389,0.1439998,92774.0,92773.0,0.01129184]
[1763480755585,0.1078869,92776.0,92770.0,0.00219803]
[1763480755785,0.00073264,92780.0,92770.0,0.08783731]
[1763480755989,0.1078858,92777.0,92770.0,0.15833748]
[1763480756391,0.1078894,92774.0,92771.0,0.26392]
[1763480756694,0.1078914,92772.0,92771.0,0.26392]
[1763480756882,0.36096163,92782.0,92771.0,0.26392]
[1763480757080,0.00073264,92780.0,92771.0,0.26392]
[1763480757479,0.1078914,92772.0,92771.0,0.26392]
[1763480757690,0.00073264,92780.0,92771.0,0.26392]
[1763480757691,0.1078879,92775.0,92771.0,0.26392]
[1763480757891,0.1078912,92773.0,92771.0,0.26392]
[1763480758385,0.1078866,92777.0,92771.0,0.26392]
[1763480758586,0.1078892,92774.0,92771.0,0.26392]
[1763480759290,0.1078905,92773.0,92771.0,0.26392]
[1763480760191,0.06965,92772.0,92771.0,0.26392]
[1763480760395,0.1775425,92771.0,92770.0,0.00219803]
[1763480760593,0.1775495,92765.0,92764.0,0.00016163]
[1763480760889,0.03391,92750.0,92749.0,0.3608]
[1763480761085,0.1418339,92744.0,92743.0,0.26392]
[1763480761486,0.07038264,92740.0,92739.0,0.08486525]
[1763480761682,0.1775798,92739.0,92738.0,0.00011104]
[1763480762195,0.1775798,92739.0,92732.0,0.07519476]
[1763480762196,0.1775867,92733.0,92732.0,0.07519476]
[1763480762394,0.1775867,92733.0,92729.0,0.00016173]
[1763480762395,0.07038264,92730.0,92729.0,0.00016173]
[1763480762692,0.10867324,92730.0,92719.0,0.07517705]
[1763480762902,0.3608,92742.0,92741.0,0.06864]
[1763480763192,0.06965,92734.0,92733.0,0.26392]
[1763480763392,0.06965,92731.0,92730.0,0.00219803]
[1763480763590,0.06965,92731.0,92730.0,0.36299803]
[1763480763786,0.01906,92736.0,92730.0,0.36299803]
[1763480764093,0.06965,92731.0,92730.0,0.36299803]
[1763480764490,0.43045,92731.0,92730.0,0.00219803]
[1763480764689,0.1775996,92722.0,92721.0,0.00016173]
[1763480764997,0.06965,92722.0,92721.0,0.00016173]
[1763480765294,0.3608,92731.0,92721.0,0.00016173]
[1763480765494,0.06965,92722.0,92721.0,0.00016173]
[1763480766083,0.01906,92736.0,92721.0,0.00016173]
[1763480766289,0.00073264,92740.0,92734.0,0.1079354]
[1763480766488,0.01906,92754.0,92741.0,0.06864]
[1763480766489,0.1079218,92746.0,92741.0,0.06864]
[1763480766685,0.1078976,92767.0,92747.0,0.1765605]
[1763480766894,0.1079044,92761.0,92750.0,0.00219803]
[1763480767095,0.03391,92751.0,92750.0,0.00219803]
[1763480767497,0.1079028,92763.0,92750.0,0.00219803]
[1763480767800,0.00073264,92760.0,92753.0,0.14530177]
[1763480768398,0.00073264,92760.0,92759.0,0.3608]
[1763480768596,0.03464264,92760.0,92759.0,0.3608]
[1763480768897,0.00073264,92760.0,92759.0,0.5027765]
[1763480769206,0.3608,92802.0,92760.0,0.00219803]
[1763480769393,0.00073264,92800.0,92794.0,0.3608]
[1763480769799,0.4686473,92810.0,92794.0,0.3608]
[1763480769992,0.36153264,92810.0,92800.0,0.00219803]
[1763480770195,0.00073264,92810.0,92805.0,0.42944]
[1763480770597,0.00016164,92812.0,92805.0,0.42944]
[1763480770806,0.00016164,92812.0,92811.0,0.176486]
[1763480771102,0.1078151,92838.0,92816.0,0.25314087]
[1763480771296,0.00073264,92840.0,92830.0,0.1474998]
[1763480771889,0.1078156,92838.0,92830.0,0.00219803]
[1763480772096,0.00073264,92840.0,92834.0,0.3608]
[1763480772301,0.1078135,92839.0,92834.0,0.3608]
[1763480772497,0.00073264,92840.0,92834.0,0.3608]
[1763480772899,0.00173264,92840.0,92834.0,0.3608]
[1763480773496,0.00173264,92840.0,92835.0,0.3608]
[1763480773704,0.001,92840.0,92835.0,0.3608]
[1763480774094,0.001,92840.0,92839.0,0.1764535]
[1763480774290,0.001,92840.0,92839.0,0.4403335]
[1763480774495,0.07138264,92840.0,92839.0,0.08760193]
[1763480774693,0.07138264,92840.0,92839.0,0.26388]
[1763480774897,0.00173264,92840.0,92839.0,0.34916255]
[1763480775203,0.001,92840.0,92839.0,0.41780255]
[1763480775708,0.00016164,92844.0,92840.0,0.00219803]
[1763480776001,0.00016164,92844.0,92843.0,0.3608]
[1763480776200,0.00016164,92844.0,92840.0,0.00219803]
[1763480776401,0.06965,92841.0,92840.0,0.00219803]
[1763480776798,0.01922164,92844.0,92840.0,0.00219803]
[1763480777101,0.12702944,92844.0,92840.0,0.00219803]
[1763480777309,0.01922164,92844.0,92840.0,0.00219803]
[1763480777694,0.1078089,92843.0,92840.0,0.00219803]
[1763480778100,0.06965,92841.0,92840.0,0.00219803]
[1763480778300,0.00016164,92844.0,92843.0,0.03407]
[1763480778494,0.00016164,92844.0,92843.0,0.42944]
[1763480778695,0.37986,92880.0,92843.0,0.42944]
[1763480778896,0.03391,92862.0,92861.0,0.3608]
[1763480779095,0.37986,92880.0,92860.0,0.00219803]
[1763480779096,0.3608,92872.0,92860.0,0.00219803]
[1763480779309,0.06965,92861.0,92860.0,0.00219803]
[1763480779703,0.06965,92840.0,92823.0,0.3608]
[1763480780005,0.06965,92840.0,92830.0,0.00016155]
[1763480780006,0.06965,92831.0,92830.0,0.00016155]
[1763480780206,0.00219803,92830.0,92823.0,0.08605614]
[1763480780512,0.02937,92814.0,92810.0,0.14530177]
[1763480780813,0.3608,92829.0,92810.0,0.09556038]
[1763480780814,0.00219803,92820.0,92810.0,0.09556038]
[1763480781001,0.00219803,92820.0,92810.0,0.14530177]
[1763480781204,0.11003413,92820.0,92810.0,0.15654476]
[1763480781509,0.00219803,92820.0,92811.0,0.2638]
[1763480781810,0.06101,92812.0,92807.0,0.3608]
[1763480781997,0.01913,92815.0,92807.0,0.3608]
[1763480782199,0.01913,92815.0,92807.0,0.4466553]
[1763480782602,0.1078457,92812.0,92807.0,0.45754058]
[1763480782803,0.02937,92808.0,92807.0,0.45754058]
[1763480783000,0.42181,92808.0,92807.0,0.0858553]
[1763480783210,0.1078802,92782.0,92778.0,0.3608]
[1763480783408,0.01913,92796.0,92778.0,0.3608]
[1763480783409,0.06101,92779.0,92778.0,0.45730962]
[1763480783908,0.00219803,92780.0,92778.0,0.45730962]
[1763480784110,0.3608,92799.0,92786.0,0.1078747]
[1763480784308,0.00016164,92788.0,92787.0,0.06175]
[1763480784905,0.1078739,92787.0,92778.0,0.45730962]
[1763480785111,0.00016164,92788.0,92778.0,0.45730962]
[1763480785112,0.1078788,92783.0,92778.0,0.45730962]
[1763480785300,0.1372532,92779.0,92778.0,0.09650962]
[1763480785503,0.1372532,92779.0,92774.0,0.2638]
[1763480785708,0.00219803,92780.0,92774.0,0.2638]
[1763480786014,0.00016164,92788.0,92787.0,0.06175]
[1763480786410,0.3608,92811.0,92787.0,0.4]
[1763480786711,0.00219803,92810.0,92800.0,0.3608]
[1763480786913,0.1078512,92807.0,92800.0,0.6246]
[1763480787102,0.00219803,92810.0,92800.0,0.6246]
[1763480787704,0.1078551,92804.0,92800.0,0.6246]
[1763480787906,0.00219803,92810.0,92800.0,0.6246]
[1763480788706,0.00219803,92810.0,92809.0,0.3608]
[1763480789109,0.06054,92797.0,92796.0,0.00016164]
[1763480789314,0.06054,92797.0,92796.0,0.08522492]
[1763480789517,0.06054,92797.0,92796.0,0.00016164]
[1763480790114,0.1698828,92788.0,92787.0,0.002]
[1763480790306,0.38123803,92790.0,92778.0,0.3608]
[1763480790511,0.06201,92779.0,92778.0,0.3608]
[1763480790711,0.1078764,92785.0,92778.0,0.44789879]
[1763480790921,0.1078801,92782.0,92778.0,0.44789879]
[1763480791115,0.03084,92779.0,92778.0,0.44789879]
[1763480791411,0.06201,92779.0,92778.0,0.44789879]
[1763480791611,0.37904,92790.0,92778.0,0.44789879]
[1763480791813,0.00016164,92791.0,92788.0,0.3608]
[1763480792509,0.06201,92779.0,92778.0,0.44789879]
[1763480792709,0.06201,92779.0,92778.0,0.08709879]
[1763480792915,0.138729,92774.0,92766.0,0.3610695]
[1763480793109,0.3608,92783.0,92766.0,0.3610695]
[1763480793420,0.03084,92774.0,92766.0,0.3610695]
[1763480793814,0.06201,92774.0,92766.0,0.3610695]
[1763480794010,0.06201,92774.0,92773.0,0.08660537]
[1763480794211,0.42281,92774.0,92773.0,8.006e-05]
[1763480794412,0.530699,92774.0,92773.0,8.006e-05]
[1763480795107,0.3608,92783.0,92773.0,0.14844727]
[1763480795412,0.1078873,92776.0,92773.0,0.03174006]
[1763480795612,0.00219803,92780.0,92779.0,0.03066]
[1763480796011,0.00219803,92780.0,92773.0,0.08534791]
[1763480796208,0.00219803,92780.0,92774.0,0.3608]
[1763480796412,0.00016164,92791.0,92790.0,0.1702904]
[1763480796715,0.3608,92830.0,92791.0,0.1078692]
[1763480797018,0.3608,92839.0,92822.0,0.3608]
[1763480797214,0.00219803,92840.0,92838.0,0.3608]
[1763480797611,0.10781,92842.0,92838.0,0.71230649]
[1763480797810,0.00016164,92848.0,92838.0,0.71230649]
[1763480798309,0.1078119,92841.0,92838.0,0.36237362]
[1763480798504,0.1078119,92841.0,92838.0,0.09857362]
[1763480798704,0.1078119,92841.0,92830.0,0.36096164]
[1763480798705,0.1078119,92841.0,92839.0,0.2638]
[1763480798916,0.1078195,92834.0,92830.0,0.36096164]
[1763480799120,0.1078195,92834.0,92831.0,0.2638]
[1763480799319,0.1078195,92834.0,92831.0,0.3489087]
[1763480799716,0.1078195,92834.0,92831.0,0.35994307]
[1763480800016,0.1698328,92831.0,92830.0,0.36096164]
[1763480800224,0.1698328,92831.0,92830.0,0.37228262]
[1763480800523,0.1698328,92831.0,92830.0,0.36096164]
[1763480800707,0.06201,92831.0,92830.0,0.36096164]
[1763480800911,0.1078175,92836.0,92830.0,0.36096164]
[1763480801117,0.00219803,92840.0,92839.0,0.1078135]
[1763480801317,0.1078135,92839.0,92836.0,0.26376]
[1763480801510,0.00219803,92840.0,92836.0,0.26376]
[1763480801713,0.00016164,92848.0,92838.0,0.3608]
[1763480802316,0.107813,92840.0,92838.0,0.3608]
[1763480802513,0.107813,92840.0,92830.0,0.36096164]
[1763480802514,0.1078228,92831.0,92830.0,0.00016164]
[1763480802812,0.1698479,92818.0,92817.0,0.3608]
[1763480803019,0.1698479,92818.0,92799.0,0.3608]
[1763480803020,0.1698525,92814.0,92813.0,0.08509082]
[1763480803213,0.1698525,92814.0,92799.0,0.3608]
[1763480803214,0.00219803,92810.0,92799.0,0.3608]
[1763480803421,0.00219803,92810.0,92799.0,0.44635222]
[1763480803621,0.01824,92820.0,92799.0,0.45743547]
[1763480803816,0.1078498,92808.0,92800.0,0.00016164]
[1763480804117,0.1078483,92809.0,92800.0,0.00016164]
[1763480804320,0.1078523,92806.0,92800.0,0.00016164]
[1763480804514,0.1078484,92809.0,92800.0,0.00016164]
[1763480804716,0.11004533,92810.0,92800.0,0.00016164]
[1763480805023,0.11004633,92810.0,92800.0,0.00016164]
[1763480805423,0.1078507,92807.0,92800.0,0.00016164]
[1763480805619,0.00219803,92810.0,92800.0,0.00016164]
[1763480805814,0.1078576,92802.0,92800.0,0.00016164]
[1763480806012,0.00219803,92810.0,92800.0,0.00016164]
[1763480806217,0.3608,92816.0,92800.0,0.10902044]
[1763480806521,0.00016164,92819.0,92818.0,0.03066]
[1763480806723,0.00016164,92819.0,92818.0,0.06226]
[1763480807032,0.00016164,92819.0,92800.0,0.00116164]
[1763480807033,0.1078564,92803.0,92800.0,0.00116164]
[1763480807217,0.1078564,92803.0,92801.0,0.26376]
[1763480807413,0.1078515,92807.0,92801.0,0.26376]
[1763480808223,0.00219803,92810.0,92801.0,0.26376]
[1763480808425,0.1078483,92809.0,92801.0,0.26376]
[1763480808623,0.1078328,92823.0,92809.0,0.03066]
[1763480808928,0.1078404,92816.0,92809.0,0.03066]
[1763480809123,0.1078236,92831.0,92818.0,0.06226]
[1763480809326,0.01824,92840.0,92828.0,0.1078261]
[1763480809530,0.3608,92847.0,92834.0,0.3608]
[1763480809718,0.3608,92847.0,92839.0,0.06226]
[1763480809719,0.11001113,92840.0,92839.0,0.06226]
[1763480809920,0.3608,92847.0,92839.0,0.06226]
[1763480809921,0.3608,92847.0,92839.0,0.32602]
[1763480810423,0.1078119,92841.0,92839.0,0.32602]
[1763480810627,0.1078119,92841.0,92839.0,0.26376]
[1763480810832,0.1698281,92835.0,92834.0,0.36096164]
[1763480811131,0.1698281,92835.0,92834.0,0.00016164]
[1763480812220,0.03084,92835.0,92834.0,0.00016164]
[1763480812418,0.1078181,92835.0,92834.0,0.00016164]
[1763480812620,0.1698281,92835.0,92834.0,0.00016164]
[1763480813221,0.1078181,92835.0,92834.0,0.00016164]
[1763480813729,0.01824,92844.0,92834.0,0.00016164]
[1763480813929,0.00219803,92840.0,92834.0,0.44589525]
[1763480814131,0.107817,92836.0,92834.0,0.36096164]
[1763480814629,0.00219803,92840.0,92834.0,0.36096164]
[1763480814937,0.00219803,92840.0,92835.0,0.26372]
[1763480815826,0.00016164,92852.0,92851.0,0.03066]
[1763480816325,0.1078032,92848.0,92847.0,0.3608]
[1763480816520,0.00219803,92850.0,92847.0,0.3608]
[1763480816720,0.00016164,92852.0,92847.0,0.3608]
[1763480816926,0.00016164,92852.0,92851.0,0.06226]
[1763480817332,0.00116164,92852.0,92851.0,0.06226]
[1763480818031,0.00219803,92850.0,92845.0,0.26372]
[1763480818231,0.107805,92847.0,92845.0,0.26372]
[1763480818432,0.1078019,92849.0,92845.0,0.26372]
[1763480818626,0.107805,92847.0,92845.0,0.26372]
[1763480818828,0.00219803,92850.0,92845.0,0.26372]
[1763480819025,0.00148019,92848.0,92847.0,0.04516]
[1763480819534,0.00148019,92848.0,92847.0,0.30884]
[1763480820231,0.03136,92845.0,92844.0,0.3608]
[1763480820420,0.1078042,92847.0,92844.0,0.62448]
[1763480820623,0.00148019,92848.0,92844.0,0.26368]
[1763480820827,0.00148019,92848.0,92847.0,0.04516]
[1763480821225,0.3608,92876.0,92846.0,0.3608]
[1763480821426,0.1077437,92900.0,92875.0,0.04516]
[1763480821427,0.1077688,92878.0,92875.0,0.04516]
[1763480821731,0.00219803,92880.0,92877.0,0.04516]
[1763480821929,0.00219803,92880.0,92864.0,0.3608]
[1763480821930,0.06157,92874.0,92864.0,0.3608]
[1763480822131,0.06157,92873.0,92872.0,0.26364]
[1763480822321,0.10792985,92878.0,92872.0,0.62444]
[1763480822527,0.1077721,92875.0,92872.0,0.26364]
[1763480822729,0.1693533,92865.0,92864.0,0.08552681]
[1763480822923,0.1693533,92865.0,92835.0,0.07517705]
[1763480822924,0.06157,92843.0,92825.0,0.05610269]
[1763480823122,0.06157,92843.0,92836.0,0.26364]
[1763480823335,0.06157,92843.0,92842.0,0.01126836]
[1763480823532,0.06157,92843.0,92842.0,0.08631794]
[1763480823733,0.06157,92843.0,92842.0,0.0001156]
[1763480824640,0.06157,92834.0,92833.0,0.00016155]
[1763480824932,0.5301893,92834.0,92833.0,0.00016155]
[1763480825336,0.03136,92819.0,92815.0,0.3608]
[1763480825528,0.06157,92816.0,92815.0,0.3608]
[1763480826333,0.0001082,92818.0,92817.0,0.04516]
[1763480826635,0.1243161,92854.0,92828.0,0.1078258]
[1763480826636,0.1078088,92844.0,92828.0,0.1078258]
[1763480826835,0.00219803,92840.0,92832.0,0.3608]
[1763480827033,0.1693953,92829.0,92825.0,0.05613852]
[1763480827338,0.00219803,92830.0,92826.0,0.3608]
[1763480827533,0.1694079,92818.0,92817.0,0.3608]
[1763480827838,0.00219803,92820.0,92819.0,0.04516]
[1763480828038,0.00016155,92827.0,92819.0,0.04516]
[1763480828239,0.10798915,92827.0,92819.0,0.04516]
[1763480828629,0.00016155,92827.0,92819.0,0.04516]
[1763480829032,0.1078344,92822.0,92819.0,0.04516]
[1763480829334,0.1078379,92818.0,92817.0,0.3608]
[1763480829544,0.00219803,92820.0,92817.0,0.3608]
[1763480829743,0.1078367,92819.0,92817.0,0.3608]
[1763480830132,0.03136,92818.0,92817.0,0.3608]
[1763480830541,0.06157,92818.0,92817.0,0.3608]
[1763480831334,0.00219803,92820.0,92819.0,0.04516]
[1763480831635,0.00016155,92827.0,92819.0,0.04516]
[1763480831836,0.00016155,92827.0,92826.0,0.40596]
[1763480832036,0.3608,92855.0,92826.0,0.3608]
[1763480832339,0.03136,92825.0,92823.0,0.05616513]
[1763480832534,0.01652,92826.0,92818.0,0.3608]
[1763480832535,0.06157,92819.0,92818.0,0.3608]
[1763480832734,0.01652,92826.0,92818.0,0.3608]
[1763480832735,0.00219803,92820.0,92818.0,0.3608]
[1763480832936,0.11003373,92820.0,92818.0,0.3608]
[1763480833143,0.01652,92826.0,92818.0,0.3608]
[1763480833336,0.10798735,92828.0,92818.0,0.3608]
[1763480833532,0.1078336,92822.0,92821.0,0.02258]
[1763480833732,0.00016075,92828.0,92818.0,0.3608]
[1763480833733,0.1078367,92819.0,92818.0,0.3608]
[1763480833947,0.06157,92816.0,92815.0,0.08474385]
[1763480834129,0.00219803,92820.0,92811.0,0.26364]
[1763480834836,0.00219803,92820.0,92819.0,0.04516]
[1763480835032,0.00219803,92820.0,92817.0,0.3608]
[1763480835033,0.06157,92818.0,92817.0,0.3608]
[1763480835236,0.1694148,92812.0,92811.0,0.26364]
[1763480835638,0.06157,92811.0,92810.0,0.00016155]
[1763480837239,0.06157,92811.0,92810.0,0.08510836]
[1763480837638,0.06157,92811.0,92810.0,0.00016155]
[1763480837945,0.4686413,92816.0,92810.0,0.00016155]
[1763480838244,0.3608,92816.0,92810.0,0.00016155]
[1763480838429,0.3608,92816.0,92815.0,0.02258]